[Event "Titled Tuesday Blitz February 22 Late 2022"]
[White "Rosen, Eric"]
[Black "Kukhmazov, Arsen"]
[WhiteFideId "2032562"]
[BlackFideId "24108260"]
[WhiteElo "2362"]
[BlackElo "2487"]
[Result "0-1"]
[Round "02"]
[TimeControl "180+1"]
[Date "2022.02.22"]
[WhiteClock "0:00:02"]
[BlackClock "0:00:06"]

1. d4 {[%clk 0:02:59]}  d5 {[%clk 0:03:00]} 2. Bf4 {[%clk 0:02:57]}  Nf6 {[%clk 0:02:55]} 3. e3 {[%clk 0:02:55]}  c5 {[%clk 0:02:55]} 4. Nf3 {[%clk 0:02:52]}  Nc6 {[%clk 0:02:52]} 5. Nbd2 {[%clk 0:02:52]}  cxd4 {[%clk 0:02:51]} 6. exd4 {[%clk 0:02:51]}  Bf5 {[%clk 0:02:52]} 7. c3 {[%clk 0:02:49]}  e6 {[%clk 0:02:53]} 8. Be2 {[%clk 0:02:46]}  Bd6 {[%clk 0:02:52]} 9. Bxd6 {[%clk 0:02:46]}  Qxd6 {[%clk 0:02:53]} 10. O-O {[%clk 0:02:47]}  h6 {[%clk 0:02:53]} 11. a4 {[%clk 0:02:47]}  O-O {[%clk 0:02:53]} 12. a5 {[%clk 0:02:47]}  Rac8 {[%clk 0:02:50]} 13. Re1 {[%clk 0:02:43]}  Rfe8 {[%clk 0:02:37]} 14. Qa4 {[%clk 0:02:41]}  Nd7 {[%clk 0:02:24]} 15. h3 {[%clk 0:02:39]}  Bg6 {[%clk 0:02:08]} 16. Nf1 {[%clk 0:02:31]}  Ne7 {[%clk 0:02:08]} 17. Bb5 {[%clk 0:02:27]}  Nc6 {[%clk 0:02:02]} 18. Ng3 {[%clk 0:02:25]}  a6 {[%clk 0:02:02]} 19. Be2 {[%clk 0:02:23]}  Ne7 {[%clk 0:01:55]} 20. Rad1 {[%clk 0:02:14]}  Red8 {[%clk 0:01:54]} 21. Rd2 {[%clk 0:02:09]}  Qc7 {[%clk 0:01:55]} 22. Qa3 {[%clk 0:02:00]}  Nc6 {[%clk 0:01:55]} 23. Ra1 {[%clk 0:01:58]}  Nf6 {[%clk 0:01:50]} 24. Rdd1 {[%clk 0:01:54]}  Ne8 {[%clk 0:01:51]} 25. Bd3 {[%clk 0:01:50]}  Bxd3 {[%clk 0:01:50]} 26. Rxd3 {[%clk 0:01:51]}  Nd6 {[%clk 0:01:50]} 27. Nd2 {[%clk 0:01:51]}  Nc4 {[%clk 0:01:44]} 28. Nxc4 {[%clk 0:01:50]}  dxc4 {[%clk 0:01:45]} 29. Re3 {[%clk 0:01:50]}  Rd5 {[%clk 0:01:46]} 30. Qa2 {[%clk 0:01:21]}  Nxa5 {[%clk 0:01:45]} 31. Rae1 {[%clk 0:01:16]}  Nb3 {[%clk 0:01:45]} 32. Ne4 {[%clk 0:01:12]}  Rcd8 {[%clk 0:01:32]} 33. Rg3 {[%clk 0:01:04]}  Ra5 {[%clk 0:01:22]} 34. Qb1 {[%clk 0:00:49]}  f5 {[%clk 0:01:01]} 35. Nf6+ {[%clk 0:00:40]}  Kf7 {[%clk 0:01:02]} 36. Nh5 {[%clk 0:00:39]}  g6 {[%clk 0:00:59]} 37. Qc2 {[%clk 0:00:17]}  e5 {[%clk 0:00:40]} 38. Qe2 {[%clk 0:00:10]}  e4 {[%clk 0:00:37]} 39. Qe3 {[%clk 0:00:08]}  Rh8 {[%clk 0:00:22]} 40. Nf4 {[%clk 0:00:07]}  Rg8 {[%clk 0:00:23]} 41. h4 {[%clk 0:00:07]}  Qd6 {[%clk 0:00:14]} 42. Nh3 {[%clk 0:00:05]}  Rh8 {[%clk 0:00:13]} 43. f3 {[%clk 0:00:05]}  exf3 {[%clk 0:00:05]} 44. Qxf3 {[%clk 0:00:03]}  Qc6 {[%clk 0:00:05]} 45. Qe3 {[%clk 0:00:02]}  Qf6 {[%clk 0:00:05]} 46. Qf2 {[%clk 0:00:01]}  Re8 {[%clk 0:00:04]} 47. Rf1 {[%clk 0:00:02]}  Re4 {[%clk 0:00:04]} 48. Nf4 {[%clk 0:00:02]}  g5 {[%clk 0:00:04]} 49. Nh5 {[%clk 0:00:03]}  Qg6 {[%clk 0:00:05]} 50. hxg5 {[%clk 0:00:03]}  hxg5 {[%clk 0:00:05]} 51. Rf3 {[%clk 0:00:03]}  f4 {[%clk 0:00:04]} 52. Ng3 {[%clk 0:00:03]}  Re6 {[%clk 0:00:03]} 53. Ne2 {[%clk 0:00:03]}  Rf6 {[%clk 0:00:03]} 54. d5 {[%clk 0:00:04]}  Rxd5 {[%clk 0:00:03]} 55. Nd4 {[%clk 0:00:05]}  Nxd4 {[%clk 0:00:03]} 56. cxd4 {[%clk 0:00:06]}  b5 {[%clk 0:00:04]} 57. Re1 {[%clk 0:00:05]}  Re6 {[%clk 0:00:04]} 58. Ra1 {[%clk 0:00:04]}  Re4 {[%clk 0:00:04]} 59. Rfa3 {[%clk 0:00:04]}  Rd6 {[%clk 0:00:03]} 60. d5 {[%clk 0:00:04]}  Re5 {[%clk 0:00:03]} 61. Qa7+ {[%clk 0:00:04]}  Kf6 {[%clk 0:00:02]} 62. Rh3 {[%clk 0:00:05]}  Rexd5 {[%clk 0:00:03]} 63. Rf1 {[%clk 0:00:04]}  Rd1 {[%clk 0:00:03]} 64. Qf2 {[%clk 0:00:03]}  Rxf1+ {[%clk 0:00:03]} 65. Qxf1 {[%clk 0:00:04]}  Qe4 {[%clk 0:00:04]} 66. Kh2 {[%clk 0:00:04]}  Kf5 {[%clk 0:00:04]} 67. Qf2 {[%clk 0:00:03]}  Qd4 {[%clk 0:00:04]} 68. Qc2+ {[%clk 0:00:03]}  Qe4 {[%clk 0:00:04]} 69. Qf2 {[%clk 0:00:03]}  Qe5 {[%clk 0:00:05]} 70. Qf3 {[%clk 0:00:02]}  Rd3 {[%clk 0:00:05]} 71. Qh5 {[%clk 0:00:02]}  f3+ {[%clk 0:00:04]} 72. Rg3 {[%clk 0:00:01]}  Ke6 {[%clk 0:00:02]} 73. Qe8+ {[%clk 0:00:02]}  Kd6 {[%clk 0:00:03]} 74. Qb8+ {[%clk 0:00:01]}  Kd5 {[%clk 0:00:03]} 75. Qb7+ {[%clk 0:00:02]}  Kd4 {[%clk 0:00:03]} 76. Qa7+ {[%clk 0:00:01]}  Ke4 {[%clk 0:00:04]} 77. Qb7+ {[%clk 0:00:02]}  Ke3 {[%clk 0:00:04]} 78. Qxf3+ {[%clk 0:00:02]}  Kd2 {[%clk 0:00:05]} 79. Qf2+ {[%clk 0:00:02]}  Kc1 {[%clk 0:00:05]} 80. Qf1+ {[%clk 0:00:02]}  Kxb2 {[%clk 0:00:06]} 81. Qf2+ {[%clk 0:00:02]}  Kb3 {[%clk 0:00:06]} 0-1


[Site "https://www.chess.com"]

[Event "Titled Tuesday Blitz February 22 Late 2022"]
[White "Rustemov, Alexander"]
[Black "Dubov, Daniil"]
[WhiteFideId "4119002"]
[BlackFideId "24126055"]
[WhiteElo "2695"]
[BlackElo "2791"]
[Result "0-1"]
[Round "02"]
[TimeControl "180+1"]
[Date "2022.02.22"]
[WhiteClock "0:00:12"]
[BlackClock "0:00:55"]

1. d4 {[%clk 0:03:00]}  Nf6 {[%clk 0:02:59]} 2. c4 {[%clk 0:03:01]}  g6 {[%clk 0:02:58]} 3. Nf3 {[%clk 0:03:01]}  Bg7 {[%clk 0:02:57]} 4. g3 {[%clk 0:03:02]}  b6 {[%clk 0:02:57]} 5. Bg2 {[%clk 0:03:02]}  Bb7 {[%clk 0:02:58]} 6. O-O {[%clk 0:03:01]}  O-O {[%clk 0:02:58]} 7. d5 {[%clk 0:03:01]}  Na6 {[%clk 0:02:58]} 8. Nc3 {[%clk 0:03:01]}  Nc5 {[%clk 0:02:58]} 9. Nd4 {[%clk 0:02:58]}  e5 {[%clk 0:02:57]} 10. Nb3 {[%clk 0:02:47]}  d6 {[%clk 0:02:56]} 11. e4 {[%clk 0:02:43]}  Bc8 {[%clk 0:02:53]} 12. h3 {[%clk 0:02:13]}  Ne8 {[%clk 0:02:46]} 13. Be3 {[%clk 0:02:11]}  f5 {[%clk 0:02:44]} 14. Qd2 {[%clk 0:02:10]}  Nf6 {[%clk 0:02:29]} 15. Nxc5 {[%clk 0:02:03]}  bxc5 {[%clk 0:02:28]} 16. Rae1 {[%clk 0:01:45]}  Nh5 {[%clk 0:02:09]} 17. Bg5 {[%clk 0:01:33]}  Bf6 {[%clk 0:02:05]} 18. Bh6 {[%clk 0:01:28]}  Bg7 {[%clk 0:02:02]} 19. Bg5 {[%clk 0:01:24]}  Qd7 {[%clk 0:01:59]} 20. exf5 {[%clk 0:01:23]}  gxf5 {[%clk 0:01:59]} 21. Qe2 {[%clk 0:01:05]}  Qf7 {[%clk 0:01:49]} 22. g4 {[%clk 0:00:45]}  Qg6 {[%clk 0:01:30]} 23. gxh5 {[%clk 0:00:32]}  Qxg5 {[%clk 0:01:30]} 24. f4 {[%clk 0:00:32]}  Qh6 {[%clk 0:01:25]} 25. Nb5 {[%clk 0:00:26]}  Rf7 {[%clk 0:01:23]} 26. Kh1 {[%clk 0:00:25]}  e4 {[%clk 0:01:17]} 27. Rg1 {[%clk 0:00:21]}  a6 {[%clk 0:01:13]} 28. Nc3 {[%clk 0:00:20]}  Bd7 {[%clk 0:01:11]} 29. Bf1 {[%clk 0:00:19]}  Qxf4 {[%clk 0:01:08]} 30. Qg2 {[%clk 0:00:17]}  Qh6 {[%clk 0:01:07]} 31. Ne2 {[%clk 0:00:17]}  Kh8 {[%clk 0:01:04]} 32. Ng3 {[%clk 0:00:13]}  Rg8 {[%clk 0:01:00]} 33. Qf2 {[%clk 0:00:12]}  Bd4 {[%clk 0:00:55]} 0-1


[Site "https://www.chess.com"]

[Event "Titled Tuesday Blitz February 22 Late 2022"]
[White "Sanchez Alvares, Kelvin Antonio"]
[Black "Zhou, Qiyu"]
[WhiteFideId "3906680"]
[BlackFideId "505161"]
[WhiteElo "2193"]
[BlackElo "1925"]
[Result "0-1"]
[Round "02"]
[TimeControl "180+1"]
[Date "2022.02.23"]
[WhiteClock "0:00:08"]
[BlackClock "0:00:07"]

1. d4 {[%clk 0:03:00]}  Nf6 {[%clk 0:02:59]} 2. c4 {[%clk 0:03:01]}  e6 {[%clk 0:02:58]} 3. Nf3 {[%clk 0:03:02]}  b6 {[%clk 0:02:56]} 4. g3 {[%clk 0:03:02]}  Ba6 {[%clk 0:02:55]} 5. Qc2 {[%clk 0:03:00]}  c6 {[%clk 0:02:53]} 6. Nbd2 {[%clk 0:02:56]}  d5 {[%clk 0:02:51]} 7. Bg2 {[%clk 0:02:53]}  Be7 {[%clk 0:02:46]} 8. O-O {[%clk 0:02:50]}  O-O {[%clk 0:02:46]} 9. b3 {[%clk 0:02:49]}  Nbd7 {[%clk 0:02:44]} 10. e4 {[%clk 0:02:49]}  dxe4 {[%clk 0:02:37]} 11. Nxe4 {[%clk 0:02:50]}  Nxe4 {[%clk 0:02:37]} 12. Qxe4 {[%clk 0:02:50]}  Rc8 {[%clk 0:02:37]} 13. Bb2 {[%clk 0:02:48]}  Nf6 {[%clk 0:02:37]} 14. Qe2 {[%clk 0:02:48]}  c5 {[%clk 0:02:34]} 15. Rad1 {[%clk 0:02:43]}  cxd4 {[%clk 0:02:28]} 16. Rxd4 {[%clk 0:02:41]}  Qc7 {[%clk 0:02:27]} 17. Qe5 {[%clk 0:02:38]}  Bb7 {[%clk 0:02:10]} 18. Rfd1 {[%clk 0:02:31]}  Bc5 {[%clk 0:01:42]} 19. Qxc7 {[%clk 0:02:18]}  Rxc7 {[%clk 0:01:43]} 20. Rd8 {[%clk 0:02:11]}  Rc8 {[%clk 0:01:41]} 21. Rxf8+ {[%clk 0:02:09]}  Kxf8 {[%clk 0:01:41]} 22. Ne5 {[%clk 0:02:03]}  Bxg2 {[%clk 0:01:37]} 23. Kxg2 {[%clk 0:02:04]}  Ke7 {[%clk 0:01:31]} 24. f3 {[%clk 0:02:02]}  Rc7 {[%clk 0:01:25]} 25. h4 {[%clk 0:01:56]}  g6 {[%clk 0:01:15]} 26. g4 {[%clk 0:01:49]}  Nd7 {[%clk 0:01:09]} 27. Nd3 {[%clk 0:01:49]}  Bd6 {[%clk 0:01:03]} 28. Kf2 {[%clk 0:01:47]}  Nc5 {[%clk 0:01:00]} 29. Ne5 {[%clk 0:01:37]}  Nd7 {[%clk 0:00:57]} 30. Nd3 {[%clk 0:01:36]}  Nc5 {[%clk 0:00:57]} 31. Nc1 {[%clk 0:01:32]}  Rd7 {[%clk 0:00:54]} 32. Kg2 {[%clk 0:01:19]}  Bf4 {[%clk 0:00:43]} 33. Rxd7+ {[%clk 0:01:17]}  Kxd7 {[%clk 0:00:44]} 34. Ne2 {[%clk 0:01:15]}  Be3 {[%clk 0:00:38]} 35. Bc3 {[%clk 0:01:05]}  Nd3 {[%clk 0:00:36]} 36. Kf1 {[%clk 0:00:59]}  f5 {[%clk 0:00:26]} 37. Ng3 {[%clk 0:00:52]}  Bf4 {[%clk 0:00:20]} 38. Ne2 {[%clk 0:00:51]}  Be5 {[%clk 0:00:18]} 39. Bd2 {[%clk 0:00:46]}  Bf6 {[%clk 0:00:17]} 40. h5 {[%clk 0:00:44]}  Ne5 {[%clk 0:00:15]} 41. hxg6 {[%clk 0:00:39]}  hxg6 {[%clk 0:00:16]} 42. g5 {[%clk 0:00:36]}  Nxf3 {[%clk 0:00:14]} 43. Bf4 {[%clk 0:00:25]}  Bxg5 {[%clk 0:00:13]} 44. Bxg5 {[%clk 0:00:23]}  Nxg5 {[%clk 0:00:14]} 45. Nf4 {[%clk 0:00:23]}  e5 {[%clk 0:00:08]} 46. Nxg6 {[%clk 0:00:22]}  Kd6 {[%clk 0:00:08]} 47. Ke2 {[%clk 0:00:20]}  Ne4 {[%clk 0:00:06]} 48. Nh4 {[%clk 0:00:19]}  Ke6 {[%clk 0:00:05]} 49. Kd3 {[%clk 0:00:18]}  Nc5+ {[%clk 0:00:05]} 50. Ke3 {[%clk 0:00:18]}  Na6 {[%clk 0:00:04]} 51. a3 {[%clk 0:00:17]}  Nc5 {[%clk 0:00:04]} 52. b4 {[%clk 0:00:13]}  f4+ {[%clk 0:00:04]} 53. Ke2 {[%clk 0:00:12]}  Ne4 {[%clk 0:00:04]} 54. Kd3 {[%clk 0:00:12]}  Nf2+ {[%clk 0:00:04]} 55. Ke2 {[%clk 0:00:12]}  Ne4 {[%clk 0:00:04]} 56. Kf3 {[%clk 0:00:12]}  Nc3 {[%clk 0:00:03]} 57. Ng6 {[%clk 0:00:10]}  Nb1 {[%clk 0:00:03]} 58. a4 {[%clk 0:00:10]}  Nd2+ {[%clk 0:00:03]} 59. Ke2 {[%clk 0:00:10]}  Nxc4 {[%clk 0:00:04]} 60. Kd3 {[%clk 0:00:10]}  Nd6 {[%clk 0:00:04]} 61. Nf8+ {[%clk 0:00:10]}  Kd5 {[%clk 0:00:03]} 62. Nd7 {[%clk 0:00:10]}  e4+ {[%clk 0:00:04]} 63. Kc3 {[%clk 0:00:10]}  f3 {[%clk 0:00:03]} 64. Nf6+ {[%clk 0:00:10]}  Ke5 {[%clk 0:00:04]} 65. Ng4+ {[%clk 0:00:11]}  Kf4 {[%clk 0:00:04]} 66. Nf2 {[%clk 0:00:11]}  e3 {[%clk 0:00:05]} 67. Nd3+ {[%clk 0:00:11]}  Kg3 {[%clk 0:00:05]} 68. Kd4 {[%clk 0:00:10]}  f2 {[%clk 0:00:06]} 69. Kxe3 {[%clk 0:00:06]}  f1=Q {[%clk 0:00:06]} 70. Ne5 {[%clk 0:00:07]}  Nf5+ {[%clk 0:00:06]} 71. Ke4 {[%clk 0:00:07]}  Qf4+ {[%clk 0:00:06]} 72. Kd5 {[%clk 0:00:07]}  Ne3+ {[%clk 0:00:07]} 73. Ke6 {[%clk 0:00:08]}  Qe4 {[%clk 0:00:07]} 74. Kd6 {[%clk 0:00:08]}  Qd5+ {[%clk 0:00:07]} 0-1


[Site "https://www.chess.com"]

[Event "Titled Tuesday Blitz February 22 Late 2022"]
[White "Savchenko, Boris"]
[Black "Zlatin, Alexander"]
[WhiteFideId "4147332"]
[BlackFideId "2810549"]
[WhiteElo "2512"]
[BlackElo "2228"]
[Result "1-0"]
[Round "02"]
[TimeControl "180+1"]
[Date "2022.02.23"]
[WhiteClock "0:00:21"]
[BlackClock "0:00:10"]

1. c4 {[%clk 0:02:53]}  e6 {[%clk 0:03:00]} 2. b3 {[%clk 0:02:51]}  d5 {[%clk 0:03:00]} 3. Bb2 {[%clk 0:02:51]}  Nf6 {[%clk 0:03:01]} 4. Nf3 {[%clk 0:02:51]}  c5 {[%clk 0:03:01]} 5. cxd5 {[%clk 0:02:47]}  exd5 {[%clk 0:03:02]} 6. e3 {[%clk 0:02:48]}  Nc6 {[%clk 0:03:02]} 7. Be2 {[%clk 0:02:44]}  Be7 {[%clk 0:03:02]} 8. O-O {[%clk 0:02:44]}  O-O {[%clk 0:03:03]} 9. d4 {[%clk 0:02:44]}  b6 {[%clk 0:03:01]} 10. Nc3 {[%clk 0:02:43]}  Bb7 {[%clk 0:03:02]} 11. Rc1 {[%clk 0:02:43]}  Rc8 {[%clk 0:03:03]} 12. Re1 {[%clk 0:02:36]}  Ne4 {[%clk 0:02:54]} 13. dxc5 {[%clk 0:02:33]}  Nxc3 {[%clk 0:02:54]} 14. Bxc3 {[%clk 0:02:30]}  bxc5 {[%clk 0:02:54]} 15. Qd2 {[%clk 0:02:25]}  Qd6 {[%clk 0:02:40]} 16. Ba1 {[%clk 0:02:17]}  f6 {[%clk 0:02:21]} 17. Red1 {[%clk 0:01:52]}  Rfd8 {[%clk 0:02:21]} 18. h3 {[%clk 0:01:32]}  Ne5 {[%clk 0:02:16]} 19. Bxe5 {[%clk 0:01:27]}  fxe5 {[%clk 0:02:16]} 20. e4 {[%clk 0:01:27]}  d4 {[%clk 0:01:48]} 21. Bc4+ {[%clk 0:01:17]}  Kh8 {[%clk 0:01:47]} 22. Re1 {[%clk 0:01:14]}  Rf8 {[%clk 0:01:44]} 23. Qd3 {[%clk 0:01:12]}  Rf4 {[%clk 0:01:36]} 24. g3 {[%clk 0:01:11]}  Rff8 {[%clk 0:01:26]} 25. Rc2 {[%clk 0:01:10]}  Rcd8 {[%clk 0:01:11]} 26. Kg2 {[%clk 0:01:03]}  Qf6 {[%clk 0:01:11]} 27. Nh2 {[%clk 0:01:02]}  h5 {[%clk 0:01:05]} 28. h4 {[%clk 0:01:00]}  g6 {[%clk 0:01:05]} 29. Rf1 {[%clk 0:00:54]}  Bc8 {[%clk 0:01:03]} 30. f4 {[%clk 0:00:53]}  exf4 {[%clk 0:01:00]} 31. Rxf4 {[%clk 0:00:53]}  Qg7 {[%clk 0:00:56]} 32. Rcf2 {[%clk 0:00:40]}  Bd6 {[%clk 0:00:49]} 33. e5 {[%clk 0:00:36]}  Bb7+ {[%clk 0:00:40]} 34. Kg1 {[%clk 0:00:32]}  Bxe5 {[%clk 0:00:39]} 35. Rf7 {[%clk 0:00:28]}  Qh6 {[%clk 0:00:24]} 36. Rxf8+ {[%clk 0:00:21]}  Rxf8 {[%clk 0:00:24]} 37. Rxf8+ {[%clk 0:00:21]}  Qxf8 {[%clk 0:00:24]} 38. Qxg6 {[%clk 0:00:22]}  Qd6 {[%clk 0:00:10]} 39. Qg8# {[%clk 0:00:21]} 1-0


[Site "https://www.chess.com"]

[Event "Titled Tuesday Blitz February 22 Late 2022"]
[White "Shirov, Alexei"]
[Black "Buscar, Michael"]
[WhiteFideId "2209390"]
[BlackFideId "2603616"]
[WhiteElo "2783"]
[BlackElo "2414"]
[Result "1-0"]
[Round "02"]
[TimeControl "180+1"]
[Date "2022.02.23"]
[WhiteClock "0:00:14"]
[BlackClock "0:00:12"]

1. d4 {[%clk 0:03:00]}  d5 {[%clk 0:02:58]} 2. c4 {[%clk 0:03:00]}  e6 {[%clk 0:02:58]} 3. Nc3 {[%clk 0:02:58]}  a6 {[%clk 0:02:58]} 4. cxd5 {[%clk 0:02:50]}  exd5 {[%clk 0:02:58]} 5. Bf4 {[%clk 0:02:50]}  Nf6 {[%clk 0:02:57]} 6. Nf3 {[%clk 0:02:41]}  Be7 {[%clk 0:02:55]} 7. e3 {[%clk 0:02:37]}  O-O {[%clk 0:02:55]} 8. Bd3 {[%clk 0:02:36]}  Nbd7 {[%clk 0:02:54]} 9. O-O {[%clk 0:02:30]}  Re8 {[%clk 0:02:48]} 10. Rc1 {[%clk 0:02:28]}  c6 {[%clk 0:02:49]} 11. Re1 {[%clk 0:02:23]}  Nf8 {[%clk 0:02:49]} 12. h3 {[%clk 0:02:12]}  g6 {[%clk 0:02:46]} 13. Ne5 {[%clk 0:02:10]}  Ne6 {[%clk 0:02:46]} 14. Bh2 {[%clk 0:02:09]}  Ng7 {[%clk 0:02:46]} 15. f4 {[%clk 0:02:08]}  Bf5 {[%clk 0:02:46]} 16. Bf1 {[%clk 0:02:07]}  Ne4 {[%clk 0:02:38]} 17. g4 {[%clk 0:02:06]}  Nxc3 {[%clk 0:02:38]} 18. Rxc3 {[%clk 0:02:04]}  Be4 {[%clk 0:02:39]} 19. Qb3 {[%clk 0:01:59]}  f6 {[%clk 0:02:28]} 20. Nd3 {[%clk 0:01:56]}  Qd7 {[%clk 0:02:27]} 21. Nf2 {[%clk 0:01:53]}  Bd6 {[%clk 0:02:25]} 22. Nxe4 {[%clk 0:01:50]}  Rxe4 {[%clk 0:02:24]} 23. Bg2 {[%clk 0:01:50]}  Re7 {[%clk 0:02:23]} 24. e4 {[%clk 0:01:50]}  Rae8 {[%clk 0:02:12]} 25. e5 {[%clk 0:01:50]}  fxe5 {[%clk 0:02:09]} 26. dxe5 {[%clk 0:01:48]}  Bb8 {[%clk 0:02:04]} 27. Rf1 {[%clk 0:01:43]}  Ne6 {[%clk 0:01:37]} 28. f5 {[%clk 0:01:34]}  Nd4 {[%clk 0:01:26]} 29. Qd1 {[%clk 0:01:33]}  Nb5 {[%clk 0:01:21]} 30. e6 {[%clk 0:01:16]}  Bxh2+ {[%clk 0:01:14]} 31. Kxh2 {[%clk 0:01:16]}  Qd6+ {[%clk 0:01:05]} 32. Rg3 {[%clk 0:01:16]}  Rf8 {[%clk 0:00:54]} 33. Qd2 {[%clk 0:01:05]}  Nc7 {[%clk 0:00:45]} 34. Rf3 {[%clk 0:01:00]}  Qe5 {[%clk 0:00:40]} 35. Kh1 {[%clk 0:00:57]}  Kh8 {[%clk 0:00:34]} 36. Qh6 {[%clk 0:00:48]}  Qg7 {[%clk 0:00:25]} 37. Qh4 {[%clk 0:00:39]}  g5 {[%clk 0:00:21]} 38. Qh5 {[%clk 0:00:39]}  Rf6 {[%clk 0:00:22]} 39. h4 {[%clk 0:00:23]}  Rh6 {[%clk 0:00:17]} 40. f6 {[%clk 0:00:22]}  Rxf6 {[%clk 0:00:17]} 41. Rxf6 {[%clk 0:00:22]}  Qxf6 {[%clk 0:00:17]} 42. hxg5 {[%clk 0:00:23]}  Qxe6 {[%clk 0:00:17]} 43. Rf3 {[%clk 0:00:22]}  Qe1+ {[%clk 0:00:16]} 44. Kh2 {[%clk 0:00:22]}  Qe5+ {[%clk 0:00:16]} 45. Kh3 {[%clk 0:00:22]}  Qg7 {[%clk 0:00:16]} 46. Qh6 {[%clk 0:00:20]}  Ne6 {[%clk 0:00:15]} 47. Kh4 {[%clk 0:00:20]}  Kg8 {[%clk 0:00:13]} 48. Qf6 {[%clk 0:00:19]}  Nf8 {[%clk 0:00:12]} 49. Qd6 {[%clk 0:00:17]}  Ng6+ {[%clk 0:00:12]} 50. Kh5 {[%clk 0:00:16]}  Ne5 {[%clk 0:00:12]} 51. Qd8+ {[%clk 0:00:14]}  Re8 {[%clk 0:00:12]} 52. Qxe8+ {[%clk 0:00:14]}  Qf8 {[%clk 0:00:12]} 53. Qxf8# {[%clk 0:00:14]} 1-0


[Site "https://www.chess.com"]

[Event "Titled Tuesday Blitz February 22 Late 2022"]
[White "Sjugirov, Sanan"]
[Black "Gomez Ledo, Roberto Carlos"]
[WhiteFideId "4189302"]
[BlackFideId "3507076"]
[WhiteElo "2602"]
[BlackElo "2379"]
[Result "1-0"]
[Round "02"]
[TimeControl "180+1"]
[Date "2022.02.22"]
[WhiteClock "0:01:28"]
[BlackClock "0:00:47"]

1. Nf3 {[%clk 0:03:00]}  Nf6 {[%clk 0:02:59]} 2. g3 {[%clk 0:03:01]}  d5 {[%clk 0:02:56]} 3. Bg2 {[%clk 0:03:01]}  e6 {[%clk 0:02:57]} 4. O-O {[%clk 0:03:01]}  Be7 {[%clk 0:02:57]} 5. c4 {[%clk 0:03:00]}  O-O {[%clk 0:02:57]} 6. b3 {[%clk 0:03:01]}  b6 {[%clk 0:02:54]} 7. cxd5 {[%clk 0:03:00]}  Nxd5 {[%clk 0:02:53]} 8. Bb2 {[%clk 0:03:00]}  c5 {[%clk 0:02:47]} 9. d4 {[%clk 0:03:00]}  Bb7 {[%clk 0:02:46]} 10. dxc5 {[%clk 0:02:50]}  Bxc5 {[%clk 0:02:45]} 11. Nbd2 {[%clk 0:02:50]}  Nd7 {[%clk 0:02:42]} 12. a3 {[%clk 0:02:46]}  a5 {[%clk 0:02:41]} 13. e4 {[%clk 0:02:34]}  N5f6 {[%clk 0:02:37]} 14. e5 {[%clk 0:02:35]}  Nd5 {[%clk 0:02:36]} 15. Re1 {[%clk 0:02:30]}  Be7 {[%clk 0:02:36]} 16. Nc4 {[%clk 0:02:20]}  Nc5 {[%clk 0:02:31]} 17. Nd4 {[%clk 0:02:20]}  Rc8 {[%clk 0:02:24]} 18. Nb5 {[%clk 0:02:18]}  Ba6 {[%clk 0:02:04]} 19. Nbd6 {[%clk 0:02:16]}  Rb8 {[%clk 0:01:55]} 20. Bxd5 {[%clk 0:02:10]}  exd5 {[%clk 0:01:53]} 21. Qxd5 {[%clk 0:02:11]}  Nxb3 {[%clk 0:01:49]} 22. Rad1 {[%clk 0:02:11]}  Nc5 {[%clk 0:01:42]} 23. Ne3 {[%clk 0:02:08]}  Bxd6 {[%clk 0:01:37]} 24. exd6 {[%clk 0:02:06]}  Bb7 {[%clk 0:01:32]} 25. Qh5 {[%clk 0:01:49]}  Qd7 {[%clk 0:01:23]} 26. Nf5 {[%clk 0:01:44]}  Ne6 {[%clk 0:01:08]} 27. Qg4 {[%clk 0:01:32]}  f6 {[%clk 0:00:59]} 28. Rxe6 {[%clk 0:01:29]}  Kh8 {[%clk 0:00:47]} 29. Re7 {[%clk 0:01:28]} 1-0


[Site "https://www.chess.com"]

[Event "Titled Tuesday Blitz February 22 Late 2022"]
[White "Szalay, Karoly"]
[Black "Guliyev, Namig"]
[WhiteFideId "2600544"]
[BlackFideId "13400363"]
[WhiteElo "2479"]
[BlackElo "2789"]
[Result "0-1"]
[Round "02"]
[TimeControl "180+1"]
[Date "2022.02.23"]
[WhiteClock "0:00:02"]
[BlackClock "0:00:41"]

1. e4 {[%clk 0:03:00]}  c5 {[%clk 0:02:59]} 2. Nf3 {[%clk 0:03:00]}  d6 {[%clk 0:03:00]} 3. d4 {[%clk 0:03:01]}  cxd4 {[%clk 0:03:01]} 4. Nxd4 {[%clk 0:03:01]}  Nf6 {[%clk 0:03:01]} 5. Nc3 {[%clk 0:03:02]}  a6 {[%clk 0:03:02]} 6. Bg5 {[%clk 0:03:03]}  e6 {[%clk 0:03:02]} 7. f3 {[%clk 0:03:04]}  Nbd7 {[%clk 0:03:02]} 8. Qd2 {[%clk 0:03:04]}  b5 {[%clk 0:03:02]} 9. O-O-O {[%clk 0:03:05]}  Bb7 {[%clk 0:03:03]} 10. h4 {[%clk 0:03:05]}  Rc8 {[%clk 0:03:02]} 11. g4 {[%clk 0:03:06]}  b4 {[%clk 0:03:02]} 12. Nce2 {[%clk 0:03:06]}  Qa5 {[%clk 0:03:02]} 13. Kb1 {[%clk 0:03:05]}  d5 {[%clk 0:02:58]} 14. Bxf6 {[%clk 0:03:04]}  gxf6 {[%clk 0:02:53]} 15. Ng3 {[%clk 0:03:03]}  dxe4 {[%clk 0:02:53]} 16. Nxe4 {[%clk 0:03:04]}  Bxe4 {[%clk 0:02:45]} 17. fxe4 {[%clk 0:02:57]}  Ne5 {[%clk 0:02:40]} 18. g5 {[%clk 0:02:51]}  Be7 {[%clk 0:02:39]} 19. Bh3 {[%clk 0:02:45]}  Nc4 {[%clk 0:02:25]} 20. Qe2 {[%clk 0:02:19]}  Qe5 {[%clk 0:02:20]} 21. Qh5 {[%clk 0:01:43]}  O-O {[%clk 0:02:05]} 22. Rd3 {[%clk 0:01:02]}  Rcd8 {[%clk 0:01:47]} 23. Rhd1 {[%clk 0:01:01]}  Bc5 {[%clk 0:01:34]} 24. Qg4 {[%clk 0:00:21]}  Kh8 {[%clk 0:01:24]} 25. c3 {[%clk 0:00:21]}  bxc3 {[%clk 0:01:23]} 26. Rxc3 {[%clk 0:00:21]}  Rxd4 {[%clk 0:01:20]} 27. Rdc1 {[%clk 0:00:21]}  Nd2+ {[%clk 0:01:17]} 28. Ka1 {[%clk 0:00:21]}  Nxe4 {[%clk 0:01:17]} 29. R3c2 {[%clk 0:00:20]}  f5 {[%clk 0:01:15]} 30. Qh5 {[%clk 0:00:19]}  Rb4 {[%clk 0:01:09]} 31. Bg2 {[%clk 0:00:19]}  Rxb2 {[%clk 0:01:06]} 32. Rxb2 {[%clk 0:00:17]}  Ba3 {[%clk 0:01:04]} 33. Rc2 {[%clk 0:00:17]}  Rb8 {[%clk 0:00:58]} 34. Qe2 {[%clk 0:00:12]}  Bxb2+ {[%clk 0:00:52]} 35. Rxb2 {[%clk 0:00:02]}  Qc3 {[%clk 0:00:53]} 36. Kb1 {[%clk 0:00:02]}  Nd2+ {[%clk 0:00:41]} 0-1


[Site "https://www.chess.com"]